bitfinex/quotes_ETHUSD_20260305
["timestamp","ask_amount","ask_price","bid_price","bid_amount"]
[1772724149780,3.11241915,2080.7,2079.3,0.0011]
[1772724149781,5.49228162,2080.7,2079.3,0.0011]
[1772724149989,5.49228162,2080.7,2079.0,3.70832831]
[1772724150187,2.37986247,2080.6,2079.0,3.70832831]
[1772724150610,2.37986247,2080.6,2079.1,3.43273009]
[1772724150805,4.24641915,2080.7,2079.2,2.50473009]
[1772724150806,3.11241915,2080.7,2079.2,2.50473009]
[1772724151114,3.11241915,2080.7,2079.4,2.50473009]
[1772724151325,3.11241915,2080.7,2079.5,3.43273009]
[1772724151614,3.11241915,2080.7,2079.6,2.50473009]
[1772724151818,3.5809771,2081.5,2079.8,2.50473009]
[1772724152115,4.80458839,2081.4,2079.9,0.929]
[1772724152485,4.80458839,2081.4,2079.5,4.80838582]
[1772724152486,2.37986247,2081.2,2079.4,1.20224956]
[1772724152685,2.37986247,2081.2,2079.0,0.0011]
[1772724152686,2.37986247,2080.9,2079.0,0.0011]
[1772724152904,2.37986247,2080.6,2079.0,1.20359395]
[1772724153207,2.37986247,2080.4,2079.0,1.20359395]
[1772724153404,2.37986247,2080.4,2078.9,4.81004766]
[1772724153612,2.37986247,2080.4,2078.5,4.81098757]
[1772724153817,1.20186529,2080.1,2078.6,0.929]
[1772724154008,2.37986247,2080.0,2078.4,1.20280187]
[1772724154312,3.72536561,2080.1,2078.0,4.81222543]
[1772724154313,2.37986247,2079.8,2078.0,4.81222543]
[1772724154517,2.37986247,2079.6,2078.0,4.81222543]
[1772724154816,2.37986247,2079.6,2077.6,4.812813]
[1772724155019,2.37986247,2079.6,2077.9,0.928]
[1772724155220,2.37986247,2079.6,2077.7,1.20325359]
[1772724155221,2.37986247,2079.6,2078.0,0.929]
[1772724155423,2.37986247,2079.6,2078.1,0.929]
[1772724155717,2.37986247,2079.8,2078.1,0.929]
[1772724155883,1.20209645,2079.7,2078.0,2.50473009]
[1772724156086,3.58195892,2079.7,2078.0,3.43373009]
[1772724156321,2.37986247,2079.6,2078.0,2.50473009]
[1772724156700,4.90336279,2079.6,2078.0,2.50473009]
[1772724156897,1.20209645,2079.7,2077.0,2.20362227]
[1772724156898,2.52350032,2078.6,2077.0,2.20362227]
[1772724157126,2.37986247,2078.9,2077.1,2.50473009]
[1772724157325,2.37986247,2079.3,2077.2,2.50473009]
[1772724157715,2.37986247,2079.3,2077.4,2.50473009]
[1772724157920,1.20238553,2079.2,2078.5,0.0011]
[1772724158228,1.20238553,2079.2,2077.6,0.928]
[1772724158423,2.37986247,2079.1,2077.5,3.70809952]
[1772724158622,2.37986247,2079.0,2077.5,2.50473009]
[1772724159025,1.20238553,2079.2,2077.5,2.50473009]
[1772724159522,1.20238553,2079.2,2077.7,2.50473009]
[1772724159724,4.80954213,2079.3,2077.7,2.50473009]
[1772724159725,1.20236145,2079.3,2077.7,2.50473009]
[1772724159923,4.80862615,2079.6,2077.9,2.50473009]
[1772724159924,4.92711336,2079.6,2077.9,2.50473009]
[1772724160125,2.37986247,2079.5,2077.9,2.50473009]
[1772724160431,1.20203865,2079.8,2077.9,2.50473009]
[1772724160628,1.20203865,2079.8,2078.0,0.928]
[1772724160629,3.58190112,2079.8,2078.0,0.928]
[1772724160798,3.58190112,2079.8,2078.1,2.50473009]
[1772724161127,1.20203865,2079.8,2078.2,2.50473009]
[1772724161703,1.20203865,2079.8,2078.4,2.50473009]
[1772724161898,2.54725089,2079.6,2078.5,1.20279047]
[1772724162203,2.54725089,2079.6,2077.9,7.31726698]
[1772724162924,2.54725089,2079.6,2078.0,2.50473009]
[1772724163130,2.31183147,2079.8,2078.0,2.50473009]
[1772724163429,2.31183147,2079.8,2077.8,1.20315593]
[1772724163430,4.92711336,2079.1,2077.8,1.20315593]
[1772724163806,1.131,2079.6,2077.8,1.20315593]
[1772724163807,2.54725089,2079.5,2077.8,1.20315593]
[1772724164011,1.20226988,2079.4,2077.9,0.928]
[1772724164407,1.20226988,2079.4,2077.6,4.81278275]
[1772724164408,2.37986247,2079.3,2077.6,4.81278275]
[1772724164727,1.20226988,2079.4,2077.8,2.50473009]
[1772724165104,1.20226988,2079.4,2077.9,0.927]
[1772724165410,1.20226988,2079.4,2077.8,2.50473009]
[1772724165819,3.58213235,2079.4,2077.8,2.50473009]
[1772724166020,3.58213235,2079.4,2077.9,1.20313778]
[1772724166607,1.20226988,2079.4,2078.0,2.50473009]
[1772724167328,1.20226988,2079.4,2078.2,2.50473009]
[1772724167528,1.20226988,2079.4,2078.3,0.927]
[1772724168031,4.80907954,2079.6,2078.3,0.927]
[1772724168032,4.80907954,2079.6,2078.3,2.12986388]
[1772724168433,4.80907954,2079.6,2078.3,1.20286388]
[1772724168636,4.80907954,2079.6,2078.4,2.50473009]
[1772724168838,1.20203865,2079.8,2078.4,2.50473009]
[1772724169023,1.20186529,2080.1,2078.4,2.50473009]
[1772724169633,1.20186529,2080.1,2078.6,2.60584507]
[1772724170131,4.80846117,2080.2,2078.9,2.60584507]
[1772724170132,0.001,2080.2,2078.9,2.60584507]
[1772724170633,0.001,2080.2,2079.0,0.926]
[1772724170807,0.001,2080.2,2078.9,2.60584507]
[1772724171010,0.001,2080.2,2079.0,0.926]
[1772724171933,0.001,2080.2,2079.0,3.53184507]
[1772724172141,0.001,2080.2,2079.1,1.20244336]
[1772724172635,0.001,2080.2,2079.2,0.926]
[1772724173213,0.001,2080.2,2079.3,2.60584507]
[1772724173847,4.80457675,2081.5,2079.3,2.60584507]
[1772724174052,1.20117234,2081.3,2079.5,2.60584507]
[1772724174407,1.20117234,2081.3,2079.7,2.60584507]
[1772724175444,1.20117234,2081.3,2079.9,2.60584507]
[1772724175641,1.20117234,2081.3,2080.0,0.925]
[1772724175848,1.20117234,2081.3,2080.1,2.60584507]
[1772724176136,1.20082616,2081.9,2080.5,2.60584507]
[1772724176345,1.20082616,2081.9,2080.7,2.60584507]
[1772724177039,1.20082616,2081.9,2080.8,3.53084507]
[1772724177252,1.20082616,2081.9,2080.9,2.60584507]
[1772724177614,1.20082616,2081.9,2081.0,0.925]
[1772724177958,5.12532609,2082.0,2081.1,0.925]
[1772724177959,1.52284535,2082.0,2081.1,0.925]
[1772724178323,1.52284535,2082.0,2081.2,1.20123005]
[1772724178520,0.32203597,2082.0,2081.3,2.60584507]
[1772724178720,1.52281259,2082.0,2081.4,0.925]
[1772724179042,1.52281259,2082.0,2080.9,1.20140323]
[1772724179357,1.52281259,2082.0,2081.2,0.925]
[1772724179564,1.52281259,2082.0,2081.2,3.53084507]
[1772724179854,1.20071901,2082.1,2081.3,2.60584507]
[1772724180023,1.20071901,2082.1,2081.4,0.924]
[1772724180216,1.20071901,2082.1,2081.3,2.60584507]
[1772724180422,4.80362055,2082.2,2081.2,0.924]
[1772724180423,0.001,2082.2,2081.2,0.924]
[1772724180728,0.001,2082.2,2080.2,2.54311651]
[1772724180729,2.39267348,2081.8,2080.2,3.74489605]
[1772724180963,2.39267348,2081.8,2080.3,2.60584507]
[1772724181246,1.126,2082.1,2080.3,2.60584507]
[1772724182026,2.39367348,2082.2,2080.3,2.60584507]
[1772724182222,4.94092437,2082.2,2080.5,2.60584507]
[1772724182437,0.001,2081.9,2080.7,2.60584507]
[1772724183329,0.001,2081.9,2080.8,0.924]
[1772724183535,0.001,2081.9,2080.8,2.60584507]
[1772724183733,0.001,2081.9,2080.6,1.20157646]
[1772724183945,0.001,2081.9,2080.7,0.924]
[1772724184154,0.001,2081.9,2080.6,2.12557646]
[1772724184332,0.001,2081.9,2080.6,4.73142153]
[1772724184734,0.001,2081.9,2080.6,2.12557646]
[1772724184962,0.001,2081.9,2080.7,2.60584507]
[1772724185326,0.001,2081.9,2080.6,0.924]
[1772724185327,2.39367348,2081.9,2080.6,0.924]
[1772724185638,2.39367348,2081.9,2080.7,0.924]
[1772724185836,0.001,2081.9,2080.7,0.924]
[1772724186356,0.001,2081.9,2080.4,3.80753705]
[1772724186543,2.39367348,2081.9,2080.4,3.80753705]
[1772724186748,1.20088385,2081.8,2080.5,0.923]
[1772724186924,3.59355733,2081.8,2080.6,0.923]
[1772724187324,2.39267348,2081.7,2080.4,0.923]
[1772724187641,2.39267348,2081.7,2080.5,0.923]
[1772724187967,1.20088385,2081.8,2080.5,3.52884507]
[1772724188146,1.20088385,2081.8,2080.5,0.923]
[1772724188326,1.20088385,2081.8,2080.5,2.60584507]
[1772724188527,2.0,2080.7,2080.5,2.60584507]
[1772724188859,2.39267348,2081.7,2080.4,0.923]
[1772724189028,2.39267348,2081.7,2080.5,0.923]
[1772724189663,2.39267348,2081.7,2080.2,3.74488426]
[1772724189868,2.39267348,2081.0,2080.0,0.49513325]
[1772724190158,0.065536,2081.4,2079.5,2.60584507]
[1772724190159,2.45820948,2081.4,2079.6,2.60584507]
[1772724190363,2.39267348,2081.7,2079.6,2.60584507]
[1772724190561,1.20088385,2081.8,2079.8,2.60584507]
[1772724190733,1.20088385,2081.8,2080.2,2.60584507]
[1772724191750,1.20088385,2081.8,2080.4,2.60584507]
[1772724192628,0.001,2081.9,2080.6,2.60584507]
[1772724193069,0.001,2081.9,2080.7,0.923]
[1772724193362,0.001,2081.9,2080.6,2.60584507]
[1772724193566,0.001,2081.9,2080.9,2.60584507]
[1772724193746,0.001,2081.9,2080.5,1.20163422]
[1772724193747,0.001,2081.9,2081.1,2.60584507]
[1772724194058,0.001,2081.9,2081.2,0.923]
[1772724194262,0.001,2082.2,2081.3,2.60584507]
[1772724194554,0.001,2081.8,2081.3,2.60584507]
[1772724194760,0.001,2081.8,2081.6,1.20099923]
[1772724194966,0.001,2081.8,2081.7,0.923]
[1772724195131,0.001,2082.2,2081.7,0.923]
[1772724195333,0.001,2082.2,2081.6,1.20099923]
[1772724195334,0.001,2082.2,2081.5,1.2010214]
[1772724195573,0.001,2082.2,2081.7,2.60584507]
[1772724196661,0.001,2082.2,2081.9,2.60584507]
[1772724197061,1.5225979,2083.2,2081.9,2.60584507]
[1772724197260,1.5225979,2083.2,2082.0,0.922]
[1772724197571,3.91527138,2083.2,2082.0,0.922]
[1772724197734,3.91527138,2083.2,2081.9,2.60584507]
[1772724197934,3.91527138,2083.2,2082.0,0.922]
[1772724198345,3.91527138,2083.2,2081.9,2.60584507]
[1772724198546,0.32252054,2083.2,2082.1,2.60584507]
[1772724198755,0.32252054,2083.2,2082.0,0.922]
[1772724198756,0.32252054,2083.2,2082.5,2.60584507]
[1772724199295,0.32252054,2083.2,2082.3,0.922]
[1772724199296,1.52263051,2083.2,2082.3,0.922]
[1772724199446,1.52263051,2083.2,2082.4,0.922]
[1772724200552,1.52263051,2083.2,2081.7,2.41475135]
[1772724200771,2.57812835,2082.9,2081.8,2.12288042]
[1772724200949,2.57812835,2082.9,2081.8,2.12287714]
[1772724201151,2.57812835,2082.9,2081.9,0.922]
[1772724201465,1.20019203,2083.0,2081.9,0.922]
[1772724201672,1.20019203,2083.0,2081.6,3.6157044]
[1772724201960,1.20019203,2083.0,2080.8,1.44171877]
[1772724201961,2.57812835,2082.5,2080.8,7.22048433]
[1772724202160,2.57812835,2082.5,2081.2,0.922]
[1772724202361,2.57812835,2082.5,2080.8,7.22048433]
[1772724202568,2.57812835,2082.3,2080.4,7.22238824]
[1772724202768,3.77883917,2082.1,2080.9,0.922]
[1772724202978,3.77883917,2082.1,2080.9,2.12338463]
[1772724203144,3.77883917,2082.1,2081.0,0.922]
[1772724203550,2.57812835,2082.0,2080.9,1.20138463]
[1772724203880,1.20071082,2082.1,2080.9,1.20138463]
[1772724203881,4.80247958,2082.3,2081.0,2.41475135]
[1772724204254,4.80247958,2082.3,2081.1,0.922]
[1772724204456,4.80247958,2082.3,2081.1,3.33675135]
[1772724204669,4.80247958,2082.3,2081.2,0.922]
[1772724204856,2.57812835,2082.3,2081.2,0.922]
[1772724205057,1.20059549,2082.4,2081.2,3.33675135]
[1772724205472,1.20059549,2082.4,2081.3,2.41475135]
[1772724205781,1.20059549,2082.4,2081.4,0.922]
[1772724205983,4.80186956,2082.6,2081.4,0.922]
[1772724206150,4.80186956,2082.6,2081.4,3.33675135]
[1772724206351,4.80097358,2083.0,2081.5,2.41475135]
[1772724206766,4.80097358,2083.0,2081.7,1.20094153]
[1772724207186,4.80197358,2083.0,2081.7,1.20094153]
[1772724207572,4.80197358,2083.0,2081.8,0.922]
[1772724208154,4.80197358,2083.0,2081.9,0.922]
[1772724208486,1.20119203,2083.0,2082.0,2.43896003]
[1772724208858,1.20119203,2083.0,2082.1,2.12267415]
[1772724208859,0.001,2083.0,2082.1,2.12267415]
[1772724209984,0.32252054,2083.2,2082.3,2.43896003]
[1772724210155,1.20005475,2083.3,2082.3,2.43896003]
[1772724210661,1.20005475,2083.3,2082.2,2.59374793]
[1772724210662,2.52701021,2083.2,2082.2,0.922]
[1772724210856,1.1999616,2083.4,2082.3,3.63955552]
[1772724211477,1.1999616,2083.4,2082.2,4.80238198]
[1772724211478,2.52701021,2083.2,2082.2,0.922]
[1772724212558,1.1999616,2083.4,2082.2,0.922]
[1772724212787,1.1999616,2083.4,2082.3,0.922]
[1772724212985,2.52701021,2083.4,2082.3,0.922]
[1772724213366,2.52701021,2083.4,2082.1,4.80284132]
[1772724213367,2.52701021,2083.4,2082.1,0.922]
[1772724213682,7.32685661,2083.6,2082.1,0.922]
[1772724213889,2.73756873,2083.5,2082.1,0.922]
[1772724214077,2.52701021,2083.4,2081.6,2.43896003]
[1772724214275,2.73756873,2083.5,2081.7,0.922]
[1772724214276,2.59254621,2083.1,2081.7,0.922]
[1772724214592,2.52701021,2083.1,2081.7,3.36096003]
[1772724214778,2.52701021,2083.1,2081.8,2.43896003]
[1772724214976,2.52701021,2083.0,2081.4,2.43896003]
[1772724215181,2.52701021,2082.9,2081.3,1.20117234]
[1772724215493,2.52701021,2082.9,2081.1,1.20128778]
[1772724215494,2.52701021,2082.5,2081.1,1.20128778]
[1772724215671,5.26477504,2082.4,2081.2,0.922]
[1772724215995,5.26383655,2082.3,2081.2,0.922]
[1772724216186,2.52701021,2082.3,2081.2,0.922]
[1772724216871,2.52701021,2082.3,2081.0,2.12443792]
[1772724217279,1.20065315,2082.2,2081.1,0.922]
[1772724217568,1.20065315,2082.2,2081.1,3.36096003]
[1772724217882,1.20065315,2082.2,2081.2,0.922]
[1772724218884,1.20065315,2082.2,2081.3,0.922]
[1772724219313,1.20030727,2082.8,2081.5,2.43896003]
[1772724219969,3.72731748,2082.8,2081.5,2.43896003]
[1772724220163,3.72731748,2082.8,2081.4,1.20111463]
[1772724220164,5.27494352,2082.7,2081.6,0.922]
[1772724220366,2.52701021,2082.7,2081.3,0.0011]
[1772724220703,5.27518202,2082.6,2081.4,0.922]
[1772724220907,5.27518202,2082.5,2081.4,0.922]
[1772724221066,5.27518202,2082.5,2081.3,0.0011]
[1772724221067,2.52701021,2082.3,2081.3,0.0011]
[1772724221261,1.20071082,2082.1,2081.3,0.0011]
[1772724221465,2.74951404,2082.0,2081.3,0.0011]
[1772724221768,1.20071082,2082.1,2081.3,0.0011]
[1772724222670,1.20071082,2082.1,2081.4,0.921]
[1772724223079,1.20048019,2082.5,2081.4,0.921]
[1772724223299,1.20059549,2082.3,2081.4,0.921]
[1772724223486,5.27568546,2082.2,2081.3,0.0011]
[1772724223685,2.52701021,2082.2,2081.3,0.0011]
[1772724224090,1.20059549,2082.3,2081.3,0.0011]
[1772724224683,1.20059549,2082.3,2081.3,2.44006003]
[1772724224967,1.118,2082.7,2081.4,0.921]
[1772724224968,4.80147252,2082.7,2081.4,0.921]
[1772724225168,7.55495525,2082.6,2081.4,1.20111463]
[1772724225365,6.48052489,2082.5,2081.3,0.0011]
[1772724225568,6.48052489,2082.5,2081.3,0.9221]
[1772724225569,5.2800447,2082.4,2081.3,0.9221]
[1772724225876,2.52701021,2082.2,2081.3,0.0011]
[1772724227098,7.81072273,2082.1,2081.3,0.0011]
[1772724227393,1.20076849,2082.0,2081.3,0.0011]
[1772724230099,2.58627358,2082.5,2081.3,0.0011]
[1772724230400,7.54922775,2082.4,2081.3,2.54058161]
[1772724230598,4.80215206,2082.4,2081.3,2.54058161]
[1772724230800,4.80215206,2082.4,2081.4,0.92]
[1772724231105,4.80215206,2082.4,2081.3,3.46058161]
[1772724231406,1.20053784,2082.5,2081.4,3.74059624]
[1772724231581,2.74603804,2082.4,2081.5,0.0011]
[1772724231985,1.20053784,2082.5,2081.5,0.0011]
[1772724232382,1.20053784,2082.5,2081.5,0.9211]
[1772724232785,2.74602382,2082.4,2081.5,0.0011]
[1772724233090,5.3322974,2082.4,2081.5,0.0011]
[1772724233291,2.58627358,2082.4,2081.5,0.0011]
[1772724233475,1.20059549,2082.3,2081.5,0.0011]
[1772724233682,2.58627358,2082.1,2081.3,0.0011]
[1772724234380,1.20059549,2082.3,2081.3,0.0011]
[1772724235112,1.20059549,2082.3,2081.3,2.54058161]
[1772724235521,4.80238198,2082.6,2081.5,2.53948161]
[1772724236307,1.20042254,2082.7,2081.5,2.53948161]
[1772724236308,4.80151151,2082.7,2081.5,2.53948161]
[1772724236511,1.20036491,2082.7,2081.5,2.53948161]
[1772724236720,0.31804128,2082.9,2081.5,2.6889666]
[1772724237013,0.31804128,2082.9,2081.6,2.53948161]
[1772724237014,0.03602811,2082.9,2081.6,2.53948161]
[1772724237217,4.79941457,2083.6,2081.6,2.53948161]
[1772724237218,1.19987205,2083.6,2082.0,2.53948161]
[1772724237397,1.19987205,2083.6,2082.2,2.53948161]
[1772724237590,1.19961612,2084.0,2082.4,2.53948161]
[1772724237807,2.74803023,2083.9,2082.6,2.53948161]
[1772724238317,1.19961612,2084.0,2082.6,2.53948161]
[1772724238730,1.19961612,2084.0,2082.7,0.919]
[1772724238878,1.19961612,2084.0,2082.7,3.45848161]
[1772724239084,1.19961612,2084.0,2082.7,0.919]
[1772724239085,2.58627358,2083.8,2082.7,0.919]
[1772724239422,1.19961612,2084.0,2082.8,2.53948161]
[1772724239719,2.58627358,2084.0,2082.9,0.919]
[1772724239929,2.58627358,2084.0,2082.7,0.919]
[1772724240427,2.58627358,2084.0,2082.7,0.918]
[1772724240593,2.53781756,2083.8,2082.6,0.918]
[1772724240922,2.53781756,2083.8,2082.3,0.918]
[1772724240923,2.58627358,2083.6,2082.3,0.918]
[1772724241128,2.58627358,2083.2,2081.9,0.918]
[1772724241597,1.20013441,2083.1,2081.9,4.65826812]
[1772724242530,1.20013441,2083.1,2081.9,2.53948161]
[1772724242721,1.20013441,2083.1,2081.7,1.20090109]
[1772724242722,3.78640799,2083.1,2081.7,1.20090109]
[1772724242895,3.78640799,2083.1,2081.5,4.65653266]
[1772724242896,2.58627358,2082.8,2081.5,4.65653266]
[1772724243094,1.20013441,2083.1,2081.6,2.53948161]
[1772724243544,3.78640799,2083.1,2081.7,0.916]
[1772724243714,3.78640799,2083.1,2081.8,0.916]
[1772724243910,2.75877707,2083.0,2081.8,0.916]
[1772724244115,5.34505065,2083.0,2081.6,3.74045787]
[1772724244330,2.58627358,2083.0,2081.9,0.916]
[1772724244718,1.20013441,2083.1,2082.0,2.53948161]
[1772724244921,1.20013441,2083.1,2082.1,0.916]
[1772724245125,1.20013441,2083.1,2082.2,0.916]
[1772724245416,1.20013441,2083.1,2082.1,0.916]
[1772724245616,8.81545873,2083.8,2082.3,2.53948161]
[1772724245929,10.14979898,2083.7,2082.3,2.53948161]
[1772724246095,2.76413973,2083.6,2082.3,2.53948161]
[1772724246298,2.76413973,2083.6,2081.5,0.0011]
[1772724246299,2.58627358,2083.2,2081.5,0.0011]
[1772724246502,2.58627358,2083.0,2081.7,2.53948161]
[1772724246697,3.65881756,2083.3,2081.7,2.53948161]
[1772724246930,2.76469532,2083.2,2081.7,2.53948161]
[1772724247101,2.58627358,2083.4,2081.7,2.53948161]
[1772724247303,2.7656816,2083.3,2081.7,2.53948161]
[1772724247709,1.2000768,2083.2,2081.9,2.53948161]
[1772724247908,1.2000768,2083.2,2082.0,0.916]
[1772724248211,1.2000768,2083.2,2081.9,2.53948161]
[1772724248516,1.2000768,2083.2,2082.1,0.916]
[1772724248726,1.2000768,2083.2,2082.1,3.45548161]
[1772724249135,1.2000768,2083.2,2082.2,2.53948161]
[1772724249436,1.2000768,2083.2,2082.1,2.72193663]
[1772724249636,2.58627358,2083.2,2082.2,0.916]
[1772724250209,2.58627358,2083.2,2082.0,0.916]
[1772724251647,1.20013441,2083.1,2082.1,1.20071082]
[1772724252340,1.20013441,2083.1,2082.1,3.74019243]
[1772724253147,1.20013441,2083.1,2082.2,0.915]
[1772724253507,1.20013441,2083.1,2082.0,1.20072703]
[1772724253842,7.38681124,2083.2,2082.1,0.915]
[1772724254334,5.92230721,2083.5,2082.3,2.53948161]
[1772724254335,4.79967541,2083.5,2082.3,2.53948161]
[1772724254637,5.09110517,2083.8,2082.3,2.53948161]
[1772724254638,1.19978883,2083.7,2082.3,2.53948161]
[1772724254838,2.76735917,2083.6,2082.3,2.53948161]
[1772724255042,2.58627358,2083.6,2082.4,0.915]
[1772724255543,1.19978883,2083.7,2082.5,2.53948161]
[1772724255728,5.12409114,2083.6,2082.3,1.20059549]
[1772724255932,5.12409114,2083.6,2082.2,7.52431861]
[1772724255933,5.35338572,2083.5,2082.2,2.72193663]
[1772724256137,5.35338572,2083.5,2082.1,0.915]
[1772724256138,2.58627358,2083.4,2082.1,2.11566559]
[1772724256323,2.58627358,2083.4,2082.1,0.915]
[1772724256839,2.58627358,2083.4,2082.2,0.915]
[1772724257039,5.12409114,2083.1,2082.0,0.0011]
[1772724257244,2.58627358,2082.9,2082.0,0.0011]
[1772724257443,2.58627358,2082.9,2081.5,0.9161]
[1772724257444,5.12409114,2082.5,2081.5,0.0011]
[1772724257609,2.58627358,2082.3,2081.5,0.0011]
[1772724257814,6.55919407,2082.2,2081.8,0.0011]
[1772724258034,6.55919407,2082.2,2081.5,0.0011]
[1772724258035,2.77226734,2082.1,2081.5,0.0011]
[1772724258567,5.35854092,2082.1,2081.5,0.0011]
[1772724258744,3.73847071,2082.2,2081.0,0.0011]
[1772724258745,5.12409114,2081.9,2081.0,0.0011]
[1772724258943,2.58627358,2081.9,2081.0,0.0011]
[1772724259267,1.20065315,2082.2,2081.0,1.20241892]
[1772724259429,2.77476283,2082.1,2081.0,1.20241892]
[1772724259826,1.20076849,2082.0,2081.0,0.0011]
[1772724260227,1.20059549,2082.3,2081.0,0.0011]
[1772724260462,1.20059549,2082.3,2081.2,2.52640595]
[1772724260866,2.52768117,2082.1,2081.0,0.0011]
[1772724261041,3.73841305,2082.3,2081.1,2.52640595]
[1772724261042,1.20059549,2082.3,2081.1,2.52640595]
[1772724261240,1.20059549,2082.3,2081.3,2.52750595]
[1772724261425,1.20059549,2082.3,2081.4,0.912]
[1772724261625,1.20059549,2082.3,2081.4,3.43840595]
[1772724261851,2.18578068,2082.8,2081.4,3.43840595]
[1772724261852,4.80191508,2082.7,2081.5,1.20105693]
[1772724262052,2.78150633,2082.6,2081.5,1.20105693]
[1772724262558,2.52768117,2082.5,2081.3,1.20225441]
[1772724262735,2.78150633,2082.4,2081.3,1.20225441]
[1772724262939,4.80191508,2082.7,2081.4,2.52640595]
[1772724263257,2.7891876,2082.6,2081.4,2.52640595]
[1772724263943,1.20048019,2082.5,2081.4,2.52640595]
[1772724264133,1.20048019,2082.5,2081.5,2.52640595]
[1772724264752,1.20048019,2082.5,2081.3,1.20224357]
[1772724264956,1.20048019,2082.5,2081.3,0.0011]
[1772724264957,2.79413728,2082.4,2081.3,0.0011]
[1772724265252,5.32181845,2082.4,2081.3,0.0011]
[1772724265451,2.79413728,2082.3,2081.3,0.0011]
[1772724266163,1.20065315,2082.2,2081.3,0.0011]
[1772724266654,2.79575912,2082.1,2081.3,0.0011]
[1772724267274,5.35725726,2082.1,2081.3,0.0011]
[1772724267431,7.89507482,2082.0,2081.3,0.0011]
[1772724267625,7.89507482,2082.0,2081.0,0.0011]
[1772724267626,2.79575912,2081.9,2081.0,1.20243741]
[1772724267855,1.20065315,2082.2,2081.1,2.49893536]
[1772724268070,2.56149814,2082.2,2081.0,0.0011]
[1772724268367,2.56149814,2082.0,2081.0,0.0011]
[1772724268830,2.79383109,2081.9,2081.0,0.0011]
[1772724269031,2.56149814,2082.0,2081.0,0.0011]
[1772724269251,2.79346094,2081.9,2081.0,0.0011]
[1772724269556,2.79346094,2081.9,2081.5,0.0011]
[1772724269741,2.56249814,2082.0,2081.5,0.0011]
[1772724269945,0.001,2082.0,2081.5,0.0011]
[1772724274848,0.001,2082.0,2081.3,0.0011]
[1772724274849,2.56249814,2082.0,2081.3,0.0011]
[1772724275088,0.001,2082.0,2081.3,0.0011]
[1772724275245,0.001,2082.0,2081.3,2.50003536]
[1772724275446,0.001,2082.0,2081.3,0.0011]
[1772724276171,1.20176849,2082.0,2081.3,0.0011]
[1772724276486,2.79655706,2081.9,2081.3,0.0011]
[1772724277042,5.3580552,2081.9,2081.3,0.0011]
[1772724277260,2.79655706,2081.8,2081.3,0.0011]
[1772724277662,1.20176849,2082.0,2081.3,0.0011]
[1772724278380,0.001,2082.0,2081.3,0.0011]
[1772724278579,0.001,2082.0,2081.3,2.50003536]
[1772724280084,0.001,2082.0,2081.3,0.0011]
[1772724280678,5.35671087,2082.0,2081.3,0.0011]
[1772724280881,2.79421273,2081.9,2081.3,0.0011]
[1772724281206,5.35571087,2081.9,2081.0,0.0011]
[1772724281387,5.35571087,2081.8,2081.0,0.0011]
[1772724281683,2.79421273,2081.7,2081.0,0.0011]
[1772724281980,2.79421273,2081.7,2081.5,0.0011]
[1772724282283,1.20099923,2081.6,2081.0,0.0011]
[1772724282781,1.20099923,2081.6,2081.3,0.0011]
[1772724282954,1.20099923,2081.6,2080.8,0.0011]
[1772724282955,5.35611939,2081.5,2080.8,0.0011]
[1772724283154,2.79462125,2081.4,2080.8,0.0011]
[1772724283783,1.20099923,2081.6,2080.8,0.0011]
[1772724283960,1.20099923,2081.6,2080.8,2.50003536]
[1772724284169,1.20192748,2081.8,2080.8,2.50003536]
[1772724284554,0.001,2081.8,2081.0,2.49893536]
[1772724284780,0.001,2081.8,2081.2,2.49893536]
[1772724285487,0.001,2081.8,2081.3,0.909]
[1772724285660,0.001,2081.8,2081.2,2.49893536]
[1772724286368,0.001,2082.0,2081.2,2.49893536]
[1772724286678,1.20176849,2082.0,2081.2,3.70012137]
[1772724287075,0.001,2082.0,2081.3,2.49893536]
[1772724288756,0.001,2082.0,2081.3,0.908]
[1772724289091,0.001,2082.0,2081.4,2.56087995]
[1772724289092,2.80366405,2082.0,2081.4,2.56087995]
[1772724289391,0.001,2082.0,2081.2,1.20120897]
[1772724289562,0.001,2082.0,2081.2,0.908]
[1772724289764,0.001,2082.0,2081.4,2.56087995]
[1772724290578,0.001,2082.0,2081.5,1.20105693]
[1772724290786,0.001,2082.0,2081.5,4.66993688]
[1772724291771,1.20056147,2082.4,2081.6,2.56087995]
[1772724291976,1.20056147,2082.4,2081.3,4.80457053]
[1772724292185,2.51397935,2082.3,2081.1,0.908]
[1772724292489,2.80269509,2082.2,2081.1,0.908]
[1772724292693,3.71474784,2082.0,2080.9,4.67028318]
[1772724292890,2.80269509,2081.9,2080.9,4.67028318]
[1772724293067,1.20075752,2082.1,2081.0,2.56087995]
[1772724293273,2.80555136,2082.0,2081.0,2.56087995]
[1772724293967,2.80555136,2081.9,2081.0,0.908]
[1772724294167,2.80555136,2081.8,2081.3,0.0011]
[1772724294576,1.20094153,2081.7,2081.3,0.0011]
[1772724294778,2.80555136,2081.6,2081.3,0.0011]
[1772724296874,1.20105693,2081.5,2081.3,0.0011]
[1772724297092,1.20105693,2081.5,2081.0,0.0011]
[1772724297291,2.80081987,2081.4,2081.0,0.0011]
[1772724297673,2.80081987,2081.4,2080.8,0.0011]
[1772724298074,2.80081987,2081.3,2080.8,0.0011]
[1772724298295,2.80081987,2081.2,2080.8,0.0011]
[1772724298485,5.90081696,2081.5,2080.5,0.0011]
[1772724298696,2.80077831,2081.4,2080.5,0.0011]
[1772724298993,1.20117234,2081.3,2080.5,0.0011]
[1772724299195,2.80077831,2081.2,2080.5,0.0011]
[1772724299775,1.20117234,2081.3,2080.5,0.0011]
[1772724299980,2.79909808,2081.2,2080.5,0.0011]
[1772724300396,1.20117234,2081.3,2080.5,2.56197995]
[1772724300699,1.20099923,2081.6,2080.5,2.56197995]
[1772724300997,2.79997968,2081.5,2080.6,2.56087995]
[1772724301197,2.74927898,2081.9,2080.6,2.56087995]
[1772724301198,1.20086267,2081.9,2080.6,2.56087995]
[1772724301368,2.80082767,2081.8,2080.6,2.56087995]
[1772724301566,2.80082767,2081.8,2080.7,0.908]
[1772724301786,2.80082767,2081.8,2080.7,3.46887995]
[1772724301987,2.80082767,2081.8,2080.8,2.56087995]
[1772724302391,1.20086267,2081.9,2080.9,0.908]
[1772724302571,2.79736459,2081.8,2080.9,0.908]